[Event "Titled Tuesday Blitz February 21 Early 2023"]
[White "Poeta, Caio Medeiros"]
[Black "Maltsevskaya, Aleksandra"]
[WhiteFideId "2142660"]
[BlackFideId "24174041"]
[WhiteElo "2088"]
[BlackElo "2390"]
[Result "0-1"]
[Round "10"]
[TimeControl "180+2"]
[Date "2023.02.21"]
[WhiteClock "0:00:06"]
[BlackClock "0:00:08"]

1. d4 {[%clk 0:02:59]}  Nf6 {[%clk 0:02:32]} 2. c4 {[%clk 0:02:57]}  g6 {[%clk 0:02:32]} 3. Nc3 {[%clk 0:02:57]}  Bg7 {[%clk 0:02:33]} 4. e4 {[%clk 0:02:57]}  d6 {[%clk 0:02:33]} 5. f3 {[%clk 0:02:58]}  O-O {[%clk 0:02:34]} 6. Be3 {[%clk 0:02:58]}  Nc6 {[%clk 0:02:31]} 7. Nge2 {[%clk 0:02:57]}  a6 {[%clk 0:02:31]} 8. Qd2 {[%clk 0:02:57]}  Na5 {[%clk 0:02:32]} 9. Nc1 {[%clk 0:02:56]}  Nd7 {[%clk 0:02:31]} 10. Be2 {[%clk 0:02:55]}  c5 {[%clk 0:02:32]} 11. O-O {[%clk 0:02:55]}  Nc6 {[%clk 0:02:21]} 12. Nb3 {[%clk 0:02:50]}  cxd4 {[%clk 0:02:10]} 13. Nxd4 {[%clk 0:02:50]}  Nxd4 {[%clk 0:02:00]} 14. Bxd4 {[%clk 0:02:48]}  Bxd4+ {[%clk 0:02:00]} 15. Qxd4 {[%clk 0:02:49]}  Qb6 {[%clk 0:02:00]} 16. Qxb6 {[%clk 0:02:49]}  Nxb6 {[%clk 0:02:01]} 17. b3 {[%clk 0:02:49]}  Be6 {[%clk 0:02:02]} 18. Rac1 {[%clk 0:02:44]}  a5 {[%clk 0:02:02]} 19. Nd5 {[%clk 0:02:20]}  Bxd5 {[%clk 0:02:02]} 20. cxd5 {[%clk 0:02:20]}  Rfc8 {[%clk 0:02:01]} 21. Bb5 {[%clk 0:02:19]}  Kg7 {[%clk 0:02:01]} 22. Kf2 {[%clk 0:02:18]}  f5 {[%clk 0:01:57]} 23. Ke3 {[%clk 0:02:18]}  Kf6 {[%clk 0:01:57]} 24. Kd4 {[%clk 0:02:18]}  Rxc1 {[%clk 0:01:37]} 25. Rxc1 {[%clk 0:02:18]}  Rc8 {[%clk 0:01:38]} 26. Rxc8 {[%clk 0:02:09]}  Nxc8 {[%clk 0:01:39]} 27. a3 {[%clk 0:01:59]}  e5+ {[%clk 0:01:23]} 28. dxe6 {[%clk 0:01:47]}  Kxe6 {[%clk 0:01:23]} 29. Bc4+ {[%clk 0:01:48]}  Ke7 {[%clk 0:01:24]} 30. Bg8 {[%clk 0:01:46]}  fxe4 {[%clk 0:01:21]} 31. fxe4 {[%clk 0:01:38]}  h6 {[%clk 0:01:21]} 32. Bd5 {[%clk 0:01:34]}  b6 {[%clk 0:01:18]} 33. Kc4 {[%clk 0:01:33]}  Kd7 {[%clk 0:01:16]} 34. Kb5 {[%clk 0:01:32]}  Kc7 {[%clk 0:01:16]} 35. Kc4 {[%clk 0:01:28]}  Ne7 {[%clk 0:01:14]} 36. Be6 {[%clk 0:01:27]}  g5 {[%clk 0:01:13]} 37. Kd4 {[%clk 0:01:26]}  Kc6 {[%clk 0:01:10]} 38. a4 {[%clk 0:01:23]}  Ng6 {[%clk 0:01:01]} 39. Bf7 {[%clk 0:01:10]}  Nf4 {[%clk 0:00:53]} 40. g3 {[%clk 0:00:54]}  Ne2+ {[%clk 0:00:53]} 41. Kd3 {[%clk 0:00:42]}  Nc1+ {[%clk 0:00:49]} 42. Kd4 {[%clk 0:00:37]}  Ne2+ {[%clk 0:00:33]} 43. Kd3 {[%clk 0:00:36]}  Nc1+ {[%clk 0:00:31]} 44. Kc4 {[%clk 0:00:31]}  Kd7 {[%clk 0:00:26]} 45. b4 {[%clk 0:00:22]}  axb4 {[%clk 0:00:23]} 46. Kxb4 {[%clk 0:00:23]}  Nd3+ {[%clk 0:00:23]} 47. Kb5 {[%clk 0:00:21]}  Kc7 {[%clk 0:00:23]} 48. Bd5 {[%clk 0:00:20]}  Ne5 {[%clk 0:00:23]} 49. Kb4 {[%clk 0:00:19]}  Ng4 {[%clk 0:00:22]} 50. h3 {[%clk 0:00:18]}  Nf2 {[%clk 0:00:11]} 51. h4 {[%clk 0:00:17]}  Nh1 {[%clk 0:00:12]} 52. hxg5 {[%clk 0:00:16]}  hxg5 {[%clk 0:00:13]} 53. g4 {[%clk 0:00:16]}  Nf2 {[%clk 0:00:13]} 54. Kc4 {[%clk 0:00:15]}  Nxg4 {[%clk 0:00:13]} 55. Kd4 {[%clk 0:00:16]}  Ne5 {[%clk 0:00:13]} 56. Ke3 {[%clk 0:00:15]}  Kb8 {[%clk 0:00:11]} 57. Kd4 {[%clk 0:00:14]}  Ka7 {[%clk 0:00:11]} 58. Be6 {[%clk 0:00:14]}  Ka6 {[%clk 0:00:12]} 59. Kd5 {[%clk 0:00:11]}  g4 {[%clk 0:00:08]} 60. Kxd6 {[%clk 0:00:11]}  g3 {[%clk 0:00:08]} 61. Bh3 {[%clk 0:00:04]}  Ng6 {[%clk 0:00:05]} 62. e5 {[%clk 0:00:04]}  Ka5 {[%clk 0:00:06]} 63. e6 {[%clk 0:00:04]}  Kxa4 {[%clk 0:00:06]} 64. e7 {[%clk 0:00:03]}  Nxe7 {[%clk 0:00:06]} 65. Kxe7 {[%clk 0:00:03]}  b5 {[%clk 0:00:06]} 66. Kd6 {[%clk 0:00:03]}  b4 {[%clk 0:00:07]} 67. Kd5 {[%clk 0:00:03]}  b3 {[%clk 0:00:07]} 68. Kc4 {[%clk 0:00:03]}  b2 {[%clk 0:00:08]} 69. Kd3 {[%clk 0:00:03]}  b1=Q+ {[%clk 0:00:08]} 70. Ke3 {[%clk 0:00:04]}  Qg1+ {[%clk 0:00:06]} 71. Kf3 {[%clk 0:00:05]}  Qf2+ {[%clk 0:00:06]} 72. Kg4 {[%clk 0:00:05]}  g2 {[%clk 0:00:07]} 73. Bxg2 {[%clk 0:00:06]}  Qxg2+ {[%clk 0:00:08]} 74. Kf4 {[%clk 0:00:06]}  Qe2 {[%clk 0:00:08]} 0-1


[Site "https://www.chess.com"]

[Event "Titled Tuesday Blitz February 21 Early 2023"]
[White "Andrews, Todd"]
[Black "Bews, Steven"]
[WhiteFideId "2012456"]
[BlackFideId "2400529"]
[WhiteElo "2220"]
[BlackElo "2295"]
[Result "0-1"]
[Round "10"]
[TimeControl "180+2"]
[Date "2023.02.21"]
[WhiteClock "0:00:10"]
[BlackClock "0:02:09"]

1. e4 {[%clk 0:03:00]}  e5 {[%clk 0:03:00]} 2. Nf3 {[%clk 0:03:01]}  Nf6 {[%clk 0:03:00]} 3. d4 {[%clk 0:03:00]}  Nxe4 {[%clk 0:03:00]} 4. Bd3 {[%clk 0:03:01]}  d5 {[%clk 0:03:00]} 5. dxe5 {[%clk 0:02:59]}  Nc5 {[%clk 0:03:00]} 6. O-O {[%clk 0:02:54]}  Be7 {[%clk 0:03:00]} 7. Bf4 {[%clk 0:02:52]}  c6 {[%clk 0:03:00]} 8. Nc3 {[%clk 0:02:52]}  O-O {[%clk 0:03:00]} 9. h3 {[%clk 0:02:50]}  Nbd7 {[%clk 0:02:58]} 10. Nd4 {[%clk 0:02:38]}  f6 {[%clk 0:02:44]} 11. e6 {[%clk 0:02:04]}  Ne5 {[%clk 0:02:40]} 12. Qh5 {[%clk 0:01:42]}  Nexd3 {[%clk 0:02:34]} 13. cxd3 {[%clk 0:01:43]}  Nxe6 {[%clk 0:02:32]} 14. Nxe6 {[%clk 0:01:30]}  Bxe6 {[%clk 0:02:33]} 15. Rfe1 {[%clk 0:01:27]}  Bf7 {[%clk 0:02:33]} 16. Qg4 {[%clk 0:01:27]}  Re8 {[%clk 0:02:29]} 17. Re3 {[%clk 0:01:16]}  Qc8 {[%clk 0:02:27]} 18. Qh4 {[%clk 0:00:50]}  d4 {[%clk 0:02:14]} 19. Rg3 {[%clk 0:00:44]}  dxc3 {[%clk 0:02:14]} 20. Bh6 {[%clk 0:00:35]}  Bg6 {[%clk 0:02:14]} 21. Re1 {[%clk 0:00:28]}  gxh6 {[%clk 0:02:10]} 22. Qxh6 {[%clk 0:00:18]}  Bf8 {[%clk 0:02:10]} 23. Rxg6+ {[%clk 0:00:10]}  hxg6 {[%clk 0:02:10]} 24. Qxg6+ {[%clk 0:00:11]}  Bg7 {[%clk 0:02:11]} 25. Rc1 {[%clk 0:00:10]}  cxb2 {[%clk 0:02:10]} 26. Rb1 {[%clk 0:00:10]}  Qe6 {[%clk 0:02:09]} 27. Rxb2 {[%clk 0:00:10]}  Qe1+ {[%clk 0:02:09]} 0-1


[Site "https://www.chess.com"]

[Event "Titled Tuesday Blitz February 21 Early 2023"]
[White "UNSTOPPABLE_LEGEND"]
[Black "Balla, Tamas-Kristof"]
[BlackFideId "1208497"]
[WhiteElo "2437"]
[BlackElo "2303"]
[Result "0-1"]
[Round "10"]
[TimeControl "180+2"]
[Date "2023.02.21"]
[WhiteClock "0:00:24"]
[BlackClock "0:00:53"]

1. d4 {[%clk 0:03:00]}  d5 {[%clk 0:03:00]} 2. c4 {[%clk 0:03:01]}  e6 {[%clk 0:03:00]} 3. Nc3 {[%clk 0:03:01]}  c5 {[%clk 0:03:01]} 4. cxd5 {[%clk 0:03:01]}  exd5 {[%clk 0:03:02]} 5. Nf3 {[%clk 0:03:00]}  Nc6 {[%clk 0:03:02]} 6. g3 {[%clk 0:03:01]}  Nf6 {[%clk 0:03:01]} 7. Bg2 {[%clk 0:03:01]}  cxd4 {[%clk 0:03:02]} 8. Nxd4 {[%clk 0:03:02]}  Bc5 {[%clk 0:03:03]} 9. Nxc6 {[%clk 0:03:03]}  bxc6 {[%clk 0:03:02]} 10. O-O {[%clk 0:03:03]}  O-O {[%clk 0:03:01]} 11. Qc2 {[%clk 0:03:03]}  Bb6 {[%clk 0:02:50]} 12. Na4 {[%clk 0:03:03]}  Qc7 {[%clk 0:02:30]} 13. Bf4 {[%clk 0:02:44]}  Qd7 {[%clk 0:02:13]} 14. Nc5 {[%clk 0:02:43]}  Bxc5 {[%clk 0:02:12]} 15. Qxc5 {[%clk 0:02:44]}  Re8 {[%clk 0:02:07]} 16. Rfe1 {[%clk 0:01:58]}  Ne4 {[%clk 0:02:00]} 17. Qc2 {[%clk 0:01:57]}  Bb7 {[%clk 0:01:52]} 18. Red1 {[%clk 0:01:48]}  Qe6 {[%clk 0:01:37]} 19. b4 {[%clk 0:01:42]}  Rad8 {[%clk 0:01:31]} 20. Rac1 {[%clk 0:01:40]}  d4 {[%clk 0:01:26]} 21. Qc4 {[%clk 0:01:25]}  Qxc4 {[%clk 0:01:18]} 22. Rxc4 {[%clk 0:01:25]}  Nc3 {[%clk 0:01:19]} 23. Ra1 {[%clk 0:00:52]}  Nxe2+ {[%clk 0:01:18]} 24. Kh1 {[%clk 0:00:52]}  Nxf4 {[%clk 0:01:08]} 25. gxf4 {[%clk 0:00:53]}  d3 {[%clk 0:01:08]} 26. Bf3 {[%clk 0:00:53]}  d2 {[%clk 0:01:08]} 27. Kg2 {[%clk 0:00:53]}  Re1 {[%clk 0:01:07]} 28. Rd1 {[%clk 0:00:48]}  c5 {[%clk 0:01:04]} 29. Bxb7 {[%clk 0:00:23]}  Rxd1 {[%clk 0:01:03]} 30. Bf3 {[%clk 0:00:21]}  Rc1 {[%clk 0:01:00]} 31. Re4 {[%clk 0:00:17]}  cxb4 {[%clk 0:00:57]} 32. Rxb4 {[%clk 0:00:15]}  d1=Q {[%clk 0:00:58]} 33. Bxd1 {[%clk 0:00:15]}  Rcxd1 {[%clk 0:00:58]} 34. Ra4 {[%clk 0:00:16]}  R1d4 {[%clk 0:00:56]} 35. Rxa7 {[%clk 0:00:17]}  Rxf4 {[%clk 0:00:56]} 36. Re7 {[%clk 0:00:16]}  Ra4 {[%clk 0:00:54]} 37. Re2 {[%clk 0:00:15]}  h6 {[%clk 0:00:55]} 38. h3 {[%clk 0:00:16]}  Rda8 {[%clk 0:00:55]} 39. Re3 {[%clk 0:00:16]}  Rxa2 {[%clk 0:00:55]} 40. Rf3 {[%clk 0:00:17]}  R2a3 {[%clk 0:00:56]} 41. Rf4 {[%clk 0:00:17]}  R8a6 {[%clk 0:00:56]} 42. Kh2 {[%clk 0:00:16]}  Rg6 {[%clk 0:00:56]} 43. h4 {[%clk 0:00:15]}  Rf6 {[%clk 0:00:52]} 44. Rxf6 {[%clk 0:00:16]}  gxf6 {[%clk 0:00:53]} 45. Kg2 {[%clk 0:00:16]}  Kg7 {[%clk 0:00:53]} 46. f3 {[%clk 0:00:17]}  Kg6 {[%clk 0:00:54]} 47. Kg3 {[%clk 0:00:18]}  Ra5 {[%clk 0:00:53]} 48. Kg4 {[%clk 0:00:18]}  h5+ {[%clk 0:00:54]} 49. Kf4 {[%clk 0:00:19]}  Ra4+ {[%clk 0:00:54]} 50. Kg3 {[%clk 0:00:19]}  Kf5 {[%clk 0:00:54]} 51. Kh3 {[%clk 0:00:19]}  Kf4 {[%clk 0:00:55]} 52. Kg2 {[%clk 0:00:20]}  Ra2+ {[%clk 0:00:55]} 53. Kh3 {[%clk 0:00:20]}  Ra3 {[%clk 0:00:53]} 54. Kg2 {[%clk 0:00:20]}  Rxf3 {[%clk 0:00:54]} 55. Kh2 {[%clk 0:00:20]}  Ra3 {[%clk 0:00:53]} 56. Kg2 {[%clk 0:00:21]}  Ra2+ {[%clk 0:00:52]} 57. Kh3 {[%clk 0:00:22]}  Ra4 {[%clk 0:00:51]} 58. Kg2 {[%clk 0:00:22]}  Kg4 {[%clk 0:00:52]} 59. Kh2 {[%clk 0:00:23]}  Ra2+ {[%clk 0:00:52]} 60. Kg1 {[%clk 0:00:23]}  Kf3 {[%clk 0:00:53]} 61. Kf1 {[%clk 0:00:24]}  Ra1# {[%clk 0:00:53]} 0-1


[Site "https://www.chess.com"]

[Event "Titled Tuesday Blitz February 21 Early 2023"]
[White "Sharapov, Evgeny"]
[Black "Zaksaite, Salomeja"]
[WhiteFideId "14103133"]
[BlackFideId "12801496"]
[WhiteElo "2375"]
[BlackElo "2283"]
[Result "1-0"]
[Round "10"]
[TimeControl "180+2"]
[Date "2023.02.21"]
[WhiteClock "0:01:03"]
[BlackClock "0:00:01"]

1. e4 {[%clk 0:02:59]}  c5 {[%clk 0:02:58]} 2. Nf3 {[%clk 0:02:59]}  Nc6 {[%clk 0:02:58]} 3. d4 {[%clk 0:02:59]}  cxd4 {[%clk 0:02:58]} 4. Nxd4 {[%clk 0:02:59]}  Nf6 {[%clk 0:02:59]} 5. Nc3 {[%clk 0:02:59]}  e5 {[%clk 0:02:59]} 6. Ndb5 {[%clk 0:02:59]}  d6 {[%clk 0:02:59]} 7. Bg5 {[%clk 0:02:59]}  a6 {[%clk 0:02:58]} 8. Na3 {[%clk 0:02:59]}  b5 {[%clk 0:02:59]} 9. Nd5 {[%clk 0:02:59]}  Be7 {[%clk 0:02:58]} 10. Bxf6 {[%clk 0:02:59]}  Bxf6 {[%clk 0:02:58]} 11. c3 {[%clk 0:03:00]}  O-O {[%clk 0:02:56]} 12. Nc2 {[%clk 0:02:59]}  Rb8 {[%clk 0:02:56]} 13. a4 {[%clk 0:02:59]}  bxa4 {[%clk 0:02:52]} 14. Ncb4 {[%clk 0:02:59]}  Nxb4 {[%clk 0:02:50]} 15. cxb4 {[%clk 0:02:59]}  Bb7 {[%clk 0:02:49]} 16. Rxa4 {[%clk 0:02:55]}  Bg5 {[%clk 0:02:24]} 17. Bxa6 {[%clk 0:02:51]}  Bc6 {[%clk 0:02:16]} 18. b5 {[%clk 0:02:50]}  Bxb5 {[%clk 0:02:12]} 19. Bxb5 {[%clk 0:02:49]}  Rxb5 {[%clk 0:02:13]} 20. b4 {[%clk 0:02:45]}  Qb8 {[%clk 0:01:47]} 21. O-O {[%clk 0:02:42]}  Qb7 {[%clk 0:01:40]} 22. Qd3 {[%clk 0:02:37]}  f5 {[%clk 0:01:29]} 23. f3 {[%clk 0:02:34]}  fxe4 {[%clk 0:01:26]} 24. fxe4 {[%clk 0:02:29]}  Rc8 {[%clk 0:00:44]} 25. Kh1 {[%clk 0:02:20]}  h6 {[%clk 0:00:42]} 26. Qh3 {[%clk 0:02:11]}  Re8 {[%clk 0:00:36]} 27. Qf5 {[%clk 0:02:03]}  Rxd5 {[%clk 0:00:22]} 28. exd5 {[%clk 0:02:02]}  Qxd5 {[%clk 0:00:23]} 29. Ra7 {[%clk 0:01:51]}  Qc4 {[%clk 0:00:20]} 30. Qf7+ {[%clk 0:01:33]}  Qxf7 {[%clk 0:00:19]} 31. Raxf7 {[%clk 0:01:33]}  e4 {[%clk 0:00:18]} 32. Rd7 {[%clk 0:01:32]}  Re6 {[%clk 0:00:11]} 33. Re1 {[%clk 0:01:30]}  e3 {[%clk 0:00:10]} 34. Re2 {[%clk 0:01:29]}  Re4 {[%clk 0:00:02]} 35. Rxd6 {[%clk 0:01:26]}  Rxb4 {[%clk 0:00:02]} 36. g3 {[%clk 0:01:26]}  Rb1+ {[%clk 0:00:02]} 37. Kg2 {[%clk 0:01:26]}  Kh7 {[%clk 0:00:03]} 38. h4 {[%clk 0:01:25]}  Be7 {[%clk 0:00:02]} 39. Rd7 {[%clk 0:01:18]}  Bc5 {[%clk 0:00:02]} 40. Rd5 {[%clk 0:01:16]}  Rc1 {[%clk 0:00:02]} 41. Kf3 {[%clk 0:01:13]}  Rc4 {[%clk 0:00:02]} 42. h5 {[%clk 0:01:10]}  Kg8 {[%clk 0:00:02]} 43. Rd7 {[%clk 0:01:10]}  Kf8 {[%clk 0:00:02]} 44. Rc7 {[%clk 0:01:08]}  Rc3 {[%clk 0:00:01]} 45. Ra2 {[%clk 0:01:04]}  Bd4 {[%clk 0:00:01]} 46. Ra8# {[%clk 0:01:03]} 1-0


[Site "https://www.chess.com"]

[Event "Titled Tuesday Blitz February 21 Early 2023"]
[White "Eynullayev, Atilla"]
[Black "Manukyan, Sargis A."]
[WhiteFideId "13413570"]
[BlackFideId "13303970"]
[WhiteElo "2281"]
[BlackElo "2158"]
[Result "0-1"]
[Round "10"]
[TimeControl "180+2"]
[Date "2023.02.21"]
[WhiteClock "0:00:01"]
[BlackClock "0:01:07"]

1. d4 {[%clk 0:03:00]}  d5 {[%clk 0:02:59]} 2. c4 {[%clk 0:02:57]}  e6 {[%clk 0:03:00]} 3. Nc3 {[%clk 0:02:57]}  Nf6 {[%clk 0:03:00]} 4. cxd5 {[%clk 0:02:57]}  exd5 {[%clk 0:03:00]} 5. Bg5 {[%clk 0:02:57]}  c6 {[%clk 0:02:59]} 6. e3 {[%clk 0:02:56]}  Qb6 {[%clk 0:02:58]} 7. Rb1 {[%clk 0:02:54]}  Ne4 {[%clk 0:02:54]} 8. Nxe4 {[%clk 0:02:52]}  dxe4 {[%clk 0:02:55]} 9. Qa4 {[%clk 0:02:32]}  Bb4+ {[%clk 0:02:42]} 10. Kd1 {[%clk 0:02:33]}  O-O {[%clk 0:02:40]} 11. a3 {[%clk 0:02:33]}  Bd6 {[%clk 0:02:39]} 12. b4 {[%clk 0:02:18]}  Be6 {[%clk 0:02:38]} 13. Ne2 {[%clk 0:02:13]}  a5 {[%clk 0:02:28]} 14. b5 {[%clk 0:01:39]}  cxb5 {[%clk 0:02:11]} 15. Qxb5 {[%clk 0:00:58]}  Qxb5 {[%clk 0:01:55]} 16. Rxb5 {[%clk 0:00:59]}  Bxa3 {[%clk 0:01:51]} 17. Rxb7 {[%clk 0:01:00]}  a4 {[%clk 0:01:39]} 18. Nc3 {[%clk 0:00:54]}  Bb3+ {[%clk 0:01:38]} 19. Kd2 {[%clk 0:00:51]}  Nc6 {[%clk 0:01:31]} 20. Bb5 {[%clk 0:00:45]}  Rfc8 {[%clk 0:01:24]} 21. Rb1 {[%clk 0:00:06]}  h6 {[%clk 0:01:08]} 22. Bf4 {[%clk 0:00:05]}  Nb4 {[%clk 0:01:08]} 23. Bd6 {[%clk 0:00:01]}  Nc2 {[%clk 0:01:07]} 0-1


[Site "https://www.chess.com"]

[Event "Titled Tuesday Blitz February 21 Early 2023"]
[White "Mamedov, Edgar"]
[Black "Gatterer, Florian"]
[WhiteFideId "13739980"]
[BlackFideId "811688"]
[WhiteElo "2193"]
[BlackElo "2170"]
[Result "1-0"]
[Round "10"]
[TimeControl "180+2"]
[Date "2023.02.21"]
[WhiteClock "0:02:30"]
[BlackClock "0:02:47"]

1. c4 {[%clk 0:03:00]}  e6 {[%clk 0:02:56]} 2. Nc3 {[%clk 0:02:57]}  d5 {[%clk 0:02:56]} 3. d4 {[%clk 0:02:54]}  Nf6 {[%clk 0:02:55]} 4. cxd5 {[%clk 0:02:53]}  Nxd5 {[%clk 0:02:55]} 5. e4 {[%clk 0:02:50]}  Nxc3 {[%clk 0:02:55]} 6. bxc3 {[%clk 0:02:49]}  c5 {[%clk 0:02:54]} 7. Nf3 {[%clk 0:02:48]}  cxd4 {[%clk 0:02:53]} 8. cxd4 {[%clk 0:02:47]}  Bb4+ {[%clk 0:02:52]} 9. Bd2 {[%clk 0:02:46]}  Bxd2+ {[%clk 0:02:53]} 10. Qxd2 {[%clk 0:02:45]}  O-O {[%clk 0:02:53]} 11. Bc4 {[%clk 0:02:43]}  Nd7 {[%clk 0:02:50]} 12. O-O {[%clk 0:02:41]}  b6 {[%clk 0:02:50]} 13. Rfe1 {[%clk 0:02:37]}  Bb7 {[%clk 0:02:48]} 14. Rad1 {[%clk 0:02:36]}  Rc8 {[%clk 0:02:47]} 15. Bb3 {[%clk 0:02:32]}  Re8 {[%clk 0:02:47]} 16. d5 {[%clk 0:02:30]} 1-0


[Site "https://www.chess.com"]

[Event "Titled Tuesday Blitz February 21 Early 2023"]
[White "Karttunen, Mika"]
[Black "Delorme, Axel"]
[WhiteFideId "502081"]
[BlackFideId "632023"]
[WhiteElo "2490"]
[BlackElo "2483"]
[Result "1-0"]
[Round "10"]
[TimeControl "180+2"]
[Date "2023.02.21"]
[WhiteClock "0:00:29"]
[BlackClock "0:00:16"]

1. e4 {[%clk 0:03:00]}  c5 {[%clk 0:02:59]} 2. Nf3 {[%clk 0:03:00]}  d6 {[%clk 0:02:59]} 3. d4 {[%clk 0:03:00]}  cxd4 {[%clk 0:03:00]} 4. Nxd4 {[%clk 0:03:00]}  Nf6 {[%clk 0:03:01]} 5. Nc3 {[%clk 0:03:01]}  a6 {[%clk 0:03:02]} 6. Be3 {[%clk 0:03:00]}  e5 {[%clk 0:02:59]} 7. Nb3 {[%clk 0:02:59]}  Be6 {[%clk 0:02:59]} 8. f3 {[%clk 0:02:59]}  Be7 {[%clk 0:02:59]} 9. Qd2 {[%clk 0:02:59]}  O-O {[%clk 0:02:59]} 10. O-O-O {[%clk 0:02:59]}  Nbd7 {[%clk 0:03:00]} 11. g4 {[%clk 0:02:58]}  b5 {[%clk 0:03:01]} 12. g5 {[%clk 0:02:59]}  b4 {[%clk 0:03:01]} 13. Ne2 {[%clk 0:02:43]}  Ne8 {[%clk 0:03:01]} 14. f4 {[%clk 0:02:37]}  a5 {[%clk 0:03:01]} 15. Kb1 {[%clk 0:02:29]}  a4 {[%clk 0:02:52]} 16. Nbc1 {[%clk 0:02:28]}  Nb6 {[%clk 0:02:30]} 17. Bxb6 {[%clk 0:02:14]}  Qxb6 {[%clk 0:02:26]} 18. f5 {[%clk 0:02:14]}  Bc4 {[%clk 0:02:25]} 19. f6 {[%clk 0:02:10]}  gxf6 {[%clk 0:02:19]} 20. gxf6 {[%clk 0:02:09]}  Bxf6 {[%clk 0:02:17]} 21. Ng3 {[%clk 0:02:06]}  Rc8 {[%clk 0:01:55]} 22. Bh3 {[%clk 0:01:42]}  Be6 {[%clk 0:01:42]} 23. Bf5 {[%clk 0:01:34]}  Ng7 {[%clk 0:01:37]} 24. Rhg1 {[%clk 0:01:30]}  Kh8 {[%clk 0:01:19]} 25. Qh6 {[%clk 0:01:22]}  Bxf5 {[%clk 0:00:45]} 26. Nxf5 {[%clk 0:01:03]}  Qf2 {[%clk 0:00:16]} 27. Qxf6 {[%clk 0:00:50]}  Qxc2+ {[%clk 0:00:16]} 28. Ka1 {[%clk 0:00:50]}  Rg8 {[%clk 0:00:16]} 29. Nxg7 {[%clk 0:00:29]} 1-0


[Site "https://www.chess.com"]

[Event "Titled Tuesday Blitz February 21 Early 2023"]
[White "Jimenez, Joaquin"]
[Black "Jaskolka, Tomasz"]
[WhiteFideId "109860"]
[BlackFideId "1170791"]
[WhiteElo "2195"]
[BlackElo "2238"]
[Result "0-1"]
[Round "10"]
[TimeControl "180+2"]
[Date "2023.02.21"]
[WhiteClock "0:00:39"]
[BlackClock "0:00:07"]

1. Nf3 {[%clk 0:03:00]}  d5 {[%clk 0:02:58]} 2. g3 {[%clk 0:03:00]}  Nd7 {[%clk 0:02:58]} 3. Bg2 {[%clk 0:03:01]}  e5 {[%clk 0:02:58]} 4. d3 {[%clk 0:03:00]}  Ngf6 {[%clk 0:02:59]} 5. O-O {[%clk 0:02:59]}  Bd6 {[%clk 0:02:58]} 6. Nbd2 {[%clk 0:02:59]}  c6 {[%clk 0:02:58]} 7. e4 {[%clk 0:02:59]}  O-O {[%clk 0:02:58]} 8. Re1 {[%clk 0:02:58]}  Re8 {[%clk 0:02:59]} 9. h3 {[%clk 0:02:53]}  Nf8 {[%clk 0:02:59]} 10. c3 {[%clk 0:02:52]}  Be6 {[%clk 0:02:59]} 11. Qc2 {[%clk 0:02:51]}  Ng6 {[%clk 0:02:58]} 12. Nf1 {[%clk 0:02:50]}  Rc8 {[%clk 0:02:55]} 13. Bg5 {[%clk 0:02:46]}  h6 {[%clk 0:02:53]} 14. Be3 {[%clk 0:02:44]}  Qd7 {[%clk 0:02:43]} 15. g4 {[%clk 0:02:41]}  h5 {[%clk 0:02:29]} 16. g5 {[%clk 0:02:27]}  Bxh3 {[%clk 0:01:42]} 17. gxf6 {[%clk 0:02:26]}  Qg4 {[%clk 0:01:16]} 18. Ng3 {[%clk 0:02:26]}  Bxg2 {[%clk 0:01:16]} 19. Kxg2 {[%clk 0:02:23]}  Nf4+ {[%clk 0:01:15]} 20. Bxf4 {[%clk 0:02:18]}  exf4 {[%clk 0:01:16]} 21. Nh2 {[%clk 0:02:17]}  Qg6 {[%clk 0:01:15]} 22. Nf1 {[%clk 0:02:06]}  fxg3 {[%clk 0:01:13]} 23. fxg3 {[%clk 0:02:05]}  Re5 {[%clk 0:01:05]} 24. exd5 {[%clk 0:01:50]}  Rg5 {[%clk 0:01:01]} 25. Re3 {[%clk 0:01:51]}  h4 {[%clk 0:00:48]} 26. Qf2 {[%clk 0:01:49]}  cxd5 {[%clk 0:00:44]} 27. Rae1 {[%clk 0:01:42]}  gxf6 {[%clk 0:00:37]} 28. Rf3 {[%clk 0:01:39]}  Kg7 {[%clk 0:00:30]} 29. Ree3 {[%clk 0:01:08]}  d4 {[%clk 0:00:21]} 30. cxd4 {[%clk 0:01:05]}  Rc1 {[%clk 0:00:22]} 31. Re4 {[%clk 0:01:00]}  Rxf1 {[%clk 0:00:14]} 32. Kxf1 {[%clk 0:00:59]}  hxg3 {[%clk 0:00:13]} 33. Qg2 {[%clk 0:00:55]}  Rh5 {[%clk 0:00:08]} 34. Ree3 {[%clk 0:00:52]}  Rh2 {[%clk 0:00:08]} 35. Rxg3 {[%clk 0:00:51]}  Rxg2 {[%clk 0:00:08]} 36. Kxg2 {[%clk 0:00:50]}  Bxg3 {[%clk 0:00:08]} 37. Rxg3 {[%clk 0:00:50]}  f5 {[%clk 0:00:07]} 38. Kf3 {[%clk 0:00:44]}  Kf6 {[%clk 0:00:07]} 39. Rxg6+ {[%clk 0:00:44]}  fxg6 {[%clk 0:00:08]} 40. b4 {[%clk 0:00:41]}  Ke6 {[%clk 0:00:08]} 41. Kf4 {[%clk 0:00:41]}  Kd5 {[%clk 0:00:09]} 42. Ke3 {[%clk 0:00:39]}  g5 {[%clk 0:00:08]} 43. a4 {[%clk 0:00:40]}  f4+ {[%clk 0:00:06]} 44. Kf3 {[%clk 0:00:39]}  Kxd4 {[%clk 0:00:06]} 45. Kg4 {[%clk 0:00:39]}  Kxd3 {[%clk 0:00:07]} 0-1


[Site "https://www.chess.com"]

[Event "Titled Tuesday Blitz February 21 Early 2023"]
[White "Jimenez Jimenez, Leandro"]
[Black "Novikov, Evgenij"]
[WhiteFideId "6415253"]
[BlackFideId "4125380"]
[WhiteElo "2146"]
[BlackElo "2276"]
[Result "1-0"]
[Round "10"]
[TimeControl "180+2"]
[Date "2023.02.21"]
[WhiteClock "0:01:46"]
[BlackClock "0:02:23"]

1. d4 {[%clk 0:03:00]}  d5 {[%clk 0:02:59]} 2. c4 {[%clk 0:02:58]}  e6 {[%clk 0:02:59]} 3. Nc3 {[%clk 0:02:57]}  a6 {[%clk 0:03:00]} 4. c5 {[%clk 0:02:56]}  b6 {[%clk 0:02:54]} 5. cxb6 {[%clk 0:02:56]}  cxb6 {[%clk 0:02:54]} 6. Nf3 {[%clk 0:02:57]}  Bd6 {[%clk 0:02:50]} 7. Bg5 {[%clk 0:02:55]}  Ne7 {[%clk 0:02:47]} 8. e3 {[%clk 0:02:54]}  h6 {[%clk 0:02:44]} 9. Bh4 {[%clk 0:02:54]}  Nd7 {[%clk 0:02:33]} 10. Bd3 {[%clk 0:02:51]}  Bb7 {[%clk 0:02:33]} 11. Qe2 {[%clk 0:02:41]}  b5 {[%clk 0:02:25]} 12. O-O {[%clk 0:02:38]}  Nb6 {[%clk 0:02:23]} 13. Rfc1 {[%clk 0:01:46]} 1-0


[Site "https://www.chess.com"]